fUST/lending_fUST_20251014
["ID","MTS","AMOUNT","RATE_DAILY","PERIOD"]
[391134930,1760386245310,-500.0,0.00022633,2]
[391134931,1760386245318,-151.0,0.000227,8]
[391134932,1760386245327,-151.0,0.000227,2]
[391134933,1760386245336,-151.0,0.000227,2]
[391134934,1760386245345,-151.0,0.000227,7]
[391134935,1760386245354,-151.0,0.000227,7]
[391134936,1760386245363,-174.074912,0.000227,7]
[391134937,1760386245372,-151.0,0.000227,7]
[391134938,1760386245381,-151.0,0.000227,7]
[391134939,1760386245390,-1500.0,0.00022768,2]
[391134940,1760386245399,-1500.0,0.00022768,2]
[391134941,1760386245408,-1500.0,0.00022768,2]
[391134942,1760386245417,-333.82944386,0.00022788,2]
[391134943,1760386245425,-301.0,0.00022813,2]
[391134944,1760386245435,-420.0,0.00022813,2]
[391134945,1760386245444,-420.0,0.00022813,2]
[391134946,1760386245454,-420.0,0.00022813,2]
[391134947,1760386245463,-1680.0,0.00022818,2]
[391134948,1760386245471,-1500.0,0.00022868,2]
[391134949,1760386245480,-1513.72261937,0.00022868,2]
[391134950,1760386245490,-500.0,0.00022868,2]
[391134951,1760386245499,-1500.0,0.00022868,2]
[391134952,1760386245509,-1500.0,0.00022868,2]
[391134953,1760386245518,-382.58949984,0.00022868,2]
[391134954,1760386245526,-501.41048236,0.00022868,2]
[391134955,1760386245535,-1500.0,0.00022868,2]
[391134956,1760386245545,-1500.0,0.00022868,2]
[391134957,1760386245554,-1500.0,0.00022868,2]
[391134958,1760386245563,-1500.0,0.00022868,2]
[391134959,1760386245572,-151.0,0.000229,9]
[391134960,1760386245581,-500.0,0.00022907,2]
[391134961,1760386245590,-1680.0,0.00022921,2]
[391134962,1760386245599,-483.763293,0.00022968,7]
[391134963,1760386245609,-151.0,0.00022968,7]
[391134964,1760386245618,-483.763293,0.00022968,7]
[391134965,1760386245627,-483.763293,0.00022968,7]
[391134966,1760386245636,-483.763293,0.00022968,7]
[391134967,1760386245645,-151.0,0.00022968,7]
[391134968,1760386245654,-151.0,0.00022968,7]
[391134969,1760386245662,-151.0,0.00022968,7]
[391134970,1760386245672,-151.0,0.00022968,7]
[391134971,1760386245681,-151.0,0.00022968,7]
[391134972,1760386245689,-151.0,0.00022968,7]
[391134973,1760386245698,-151.0,0.00022968,7]
[391134974,1760386245707,-153.475738,0.00022968,7]
[391134975,1760386245716,-151.0,0.00022968,7]
[391134976,1760386245725,-284.056383,0.00022968,7]
[391134977,1760386245734,-284.056383,0.00022968,7]
[391134978,1760386245743,-151.0,0.00022968,7]
[391134979,1760386245753,-284.056383,0.00022968,7]
[391134980,1760386245762,-284.056391,0.00022968,7]
[391134981,1760386245771,-503.72212245,0.00022968,2]
[391134982,1760386245779,-1500.0,0.00022968,2]
[391134983,1760386245788,-1071.46762048,0.00022968,2]
[391134984,1760386245797,-1500.0,0.00022968,2]
[391134985,1760386245806,-347.36378084,0.00022968,2]
[391134986,1760386245815,-505.91868387,0.00022968,2]
[391134987,1760386245823,-1247.19281656,0.00022968,2]
[391134988,1760386245832,-1002.83132429,0.00022968,2]
[391134989,1760386245842,-1500.0,0.00022968,2]
[391134990,1760386245851,-1500.0,0.00022968,2]
[391134991,1760386245860,-1000.0,0.00022968,2]
[391134992,1760386245869,-1500.0,0.00022968,2]
[391134993,1760386245878,-1500.0,0.00022968,2]
[391134994,1760386245887,-500.0,0.00022973,2]
[391134995,1760386245895,-500.0,0.00022973,2]
[391134996,1760386245904,-500.0,0.00022973,2]
[391134997,1760386245913,-155.0,0.00022995,2]
[391134998,1760386245921,-151.0,0.00022996,7]
[391134999,1760386245930,-151.0,0.00022996,7]
[391135000,1760386245939,-151.0,0.00022996,7]
[391135001,1760386245947,-151.64626286,0.00022996,7]
[391135002,1760386245956,-151.469271,0.00022996,7]
[391135003,1760386245965,-151.0,0.00022996,7]
[391135004,1760386245974,-151.0,0.00022996,7]
[391135005,1760386245983,-151.0,0.00022996,7]
[391135006,1760386245991,-174.9948,0.00022996,7]
[391135007,1760386246001,-151.0,0.00022996,7]
[391135008,1760386246010,-151.0,0.00022996,7]
[391135009,1760386246019,-151.0,0.00022996,7]
[391135010,1760386246028,-151.0,0.00022996,7]
[391135011,1760386246037,-151.913229,0.00022996,7]
[391135012,1760386246112,-151.0,0.00022996,7]
[391135013,1760386246121,-151.314445,0.00022996,7]
[391135014,1760386246130,-151.0,0.00022996,7]
[391135015,1760386246139,-151.0,0.00022996,7]
[391135016,1760386246147,-151.0,0.00022996,7]
[391135017,1760386246156,-151.0,0.00022996,7]
[391135018,1760386246166,-160.0,0.00023,2]
[391135019,1760386246178,-140530.07001063,0.00023,3]
[391135020,1760386246187,-151.0,0.00023,7]
[391135021,1760386246196,-1000.0,0.00023021,2]
[391135022,1760386246204,-1000.0,0.00023021,2]
[391135023,1760386246213,-503.21846594,0.00023021,2]
[391135024,1760386246222,-432.33795975,0.00023021,2]
[391135025,1760386246231,-1000.0,0.00023021,2]
[391135026,1760386246240,-501.00593403,0.00023021,2]
[391135027,1760386246250,-1000.0,0.00023021,2]
[391135028,1760386246259,-908.88053992,0.00023021,2]
[391135029,1760386246268,-501.49849318,0.00023021,2]
[391135030,1760386246277,-417.71064303,0.00023021,2]
[391135031,1760386246286,-500.6368061,0.00023021,2]
[391135032,1760386246295,-500.67169479,0.00023021,2]
[391135033,1760386246304,-151.0,0.00023021,7]
[391135034,1760386246313,-151.0,0.00023021,7]
[391135035,1760386246322,-151.0,0.00023021,7]
[391135036,1760386246331,-151.0,0.00023021,7]
[391135037,1760386246340,-268.873279,0.00023021,7]
[391135038,1760386246349,-151.0,0.00023021,7]
[391135039,1760386246357,-151.0,0.00023021,7]
[391135040,1760386246365,-151.0,0.00023021,7]
[391135041,1760386246373,-151.0,0.00023021,7]
[391135042,1760386246381,-154.775544,0.00023021,7]
[391135043,1760386246389,-154.775544,0.00023021,7]
[391135044,1760386246396,-154.775544,0.00023021,7]
[391135045,1760386246404,-154.775544,0.00023021,7]
[391135046,1760386246412,-151.0,0.00023021,7]
[391135047,1760386246420,-299.228441,0.00023021,7]
[391135048,1760386246428,-166.195044,0.00023021,7]
[391135049,1760386246438,-166.195044,0.00023021,7]
[391135050,1760386246446,-166.195044,0.00023021,7]
[391135051,1760386246454,-166.195044,0.00023021,7]
[391135052,1760386246462,-151.0,0.00023021,7]
[391135053,1760386246470,-151.0,0.00023021,7]
[391135054,1760386246481,-151.0,0.00023021,7]
[391135055,1760386246491,-151.0,0.00023021,7]
[391135056,1760386246504,-163.49043,0.00023021,7]
[391135057,1760386246514,-163.49043,0.00023021,7]
[391135058,1760386246523,-151.0,0.00023021,7]
[391135059,1760386246532,-151.0,0.00023021,7]
[391135060,1760386246541,-163.49043,0.00023021,7]
[391135061,1760386246551,-163.490436,0.00023021,7]
[391135062,1760386246560,-151.0,0.00023021,7]
[391135063,1760386246569,-2685.634428,0.00023021,7]
[391135064,1760386246578,-174.033322,0.00023021,7]
[391135065,1760386246587,-2685.634428,0.00023021,7]
[391135066,1760386246596,-2685.634428,0.00023021,7]
[391135067,1760386246605,-2685.634419,0.00023021,7]
[391135068,1760386246614,-382.250119,0.00023021,7]
[391135069,1760386246624,-382.250119,0.00023021,7]
[391135070,1760386246633,-382.250119,0.00023021,7]
[391135071,1760386246642,-382.250127,0.00023021,7]
[391135072,1760386246651,-191.813138,0.00023021,7]
[391135073,1760386246660,-191.813138,0.00023021,7]
[391135074,1760386246669,-191.813138,0.00023021,7]
[391135075,1760386246678,-191.813132,0.00023021,7]
[391135076,1760386246687,-151.0,0.00023021,7]
[391135077,1760386246695,-151.0,0.00023021,7]
[391135078,1760386246703,-151.0,0.00023021,7]
[391135079,1760386246711,-151.0,0.00023021,7]
[391135080,1760386246719,-151.0,0.00023022,7]
[391135081,1760386246727,-151.0,0.00023022,7]
[391135082,1760386246736,-151.0,0.00023022,7]
[391135083,1760386246745,-229.860945,0.00023022,7]
[391135084,1760386246756,-166.140222,0.00023022,7]
[391135085,1760386246765,-166.140222,0.00023022,7]
[391135086,1760386246774,-151.0,0.00023022,7]
[391135087,1760386246783,-166.140222,0.00023022,7]
[391135088,1760386246792,-166.14023,0.00023022,7]
[391135089,1760386246802,-151.0,0.00023022,7]
[391135090,1760386246811,-151.0,0.00023022,7]
[391135091,1760386246819,-151.0,0.00023022,7]
[391135092,1760386246828,-151.0,0.00023022,7]
[391135093,1760386246837,-151.0,0.00023022,7]
[391135094,1760386246846,-154.024293,0.00023022,7]
[391135095,1760386246855,-151.0,0.00023022,7]
[391135096,1760386246864,-19292.2273969,0.00023022,2]
[391135097,1760386246873,-196.1576721,0.00023022,2]
[391135098,1760386246882,-151.0,0.00023022,2]
[391135099,1760386246891,-1000.0,0.00023031,2]
[391135100,1760386246900,-260.0,0.00023048,2]
[391135101,1760386246910,-1000.0,0.000231,2]
[391135102,1760386246919,-15753.41834759,0.00023115,2]
[391135103,1760386246927,-151.0,0.00023121,2]
[391135104,1760386246936,-152.947109,0.00023121,2]
[391135105,1760386246946,-217.270765,0.00023121,7]
[391135106,1760386246955,-161.836373,0.00023121,7]
[391135107,1760386246964,-483.763293,0.00023121,7]
[391135108,1760386246973,-151.0,0.00023121,7]
[391135109,1760386246983,-483.763293,0.00023121,7]
[391135110,1760386246992,-483.763293,0.00023121,7]
[391135111,1760386247011,-483.7633026,0.00023121,7]
[391135112,1760386247021,-258.718148,0.00023121,7]
[391135113,1760386247030,-151.0,0.00023121,7]
[391135114,1760386247039,-151.0,0.00023121,7]
[391135115,1760386247048,-151.0,0.00023121,7]
[391135116,1760386247058,-151.0,0.00023121,7]
[391135117,1760386247067,-151.0,0.00023121,7]
[391135118,1760386247076,-151.0,0.00023121,7]
[391135119,1760386247085,-2500.0,0.00023164,2]
[391135120,1760386247097,-500.0,0.00023181,2]
[391135122,1760386247107,-151.0,0.000232,6]
[391135123,1760386247117,-864.95,0.00023227,2]
[391135125,1760386247127,-151.0,0.00023245,7]
[391135127,1760386247136,-151.0,0.00023245,7]
[391135129,1760386247146,-151.0,0.00023245,7]
[391135131,1760386247155,-1000.0,0.00023246,5]
[391135133,1760386247164,-297.91802679,0.00023256,2]
[391135134,1760386247176,-1190.48043507,0.00023256,2]
[391135136,1760386247186,-152.54357747,0.00023256,2]
[391135137,1760386247195,-609.56413558,0.00023256,2]
[391135138,1760386247204,-151.64837414,0.00023256,2]
[391135139,1760386247214,-616.18505701,0.00023256,2]
[391135140,1760386247223,-290.12344659,0.00023256,2]
[391135141,1760386247232,-442.51102124,0.00023316,2]
[391135142,1760386247241,-2000.0,0.00023316,2]
[391135143,1760386247252,-2000.0,0.00023316,2]
[391135144,1760386247262,-151.0,0.00023348,2]
[391135145,1760386247271,-151.0,0.00023348,2]
[391135146,1760386247280,-500.0,0.00023348,2]
[391135147,1760386247357,-201.23083355,0.00023348,2]
[391135148,1760386247367,-638.0,0.00023348,2]
[391135149,1760386247377,-157.44,0.00023385,2]
[391135150,1760386247386,-368.36352426,0.00023388,2]
[391135151,1760386247395,-151.0,0.000234,7]
[391135152,1760386247404,-151.0,0.000234,7]
[391135153,1760386247413,-152.866507,0.000234,7]
[391135154,1760386247423,-151.0,0.000234,7]
[391135155,1760386247432,-151.0,0.000234,7]
[391135156,1760386247441,-151.0,0.000234,10]
[391135157,1760386247451,-151.0,0.000234,7]
[391135158,1760386247460,-151.0,0.000234,7]
[391135159,1760386247470,-151.0,0.000234,7]
[391135160,1760386247479,-34708.34,0.000234,7]
[391135161,1760386247488,-151.0,0.000234,7]
[391135162,1760386247499,-151.0,0.000234,7]
[391135163,1760386247508,-151.0,0.000234,7]
[391135164,1760386247517,-151.0,0.000234,7]
[391135165,1760386247527,-151.0,0.000234,7]
[391135166,1760386247537,-151.0,0.000234,7]
[391135167,1760386247547,-151.0,0.000234,7]
[391135168,1760386247556,-151.0,0.000234,7]
[391135169,1760386247566,-151.0,0.000234,7]
[391135170,1760386247575,-154.775544,0.000234,7]
[391135171,1760386247585,-154.775544,0.000234,7]
[391135172,1760386247594,-154.775544,0.000234,7]
[391135173,1760386247604,-154.775544,0.000234,7]
[391135174,1760386247614,-166.195044,0.000234,7]
[391135175,1760386247623,-166.195044,0.000234,7]
[391135176,1760386247633,-166.195044,0.000234,7]
[391135177,1760386247642,-166.195044,0.000234,7]
[391135178,1760386247652,-28106.01,0.000234,3]
[391135179,1760386247661,-151.0,0.00023403,2]
[391135180,1760386247670,-151.0,0.00023403,2]
[391135181,1760386247679,-500.0,0.00023403,2]
[391135182,1760386247688,-638.0,0.00023403,2]
[391135183,1760386247697,-1005.03816899,0.00023416,2]
[391135184,1760386247707,-2000.0,0.00023416,2]
[391135185,1760386247717,-2000.0,0.00023416,2]
[391135186,1760386247726,-506.198649,0.00023416,2]
[391135187,1760386247735,-2000.0,0.00023416,2]
[391135188,1760386247745,-2000.0,0.00023416,2]
[391135189,1760386247756,-900.89776231,0.00023417,2]
[391135190,1760386247766,-500.0,0.00023455,2]
[391135191,1760386247775,-198.0,0.00023458,2]
[391135192,1760386247784,-197.999998,0.00023458,2]
[391135193,1760386247793,-500.0,0.00023458,2]
[391135194,1760386247803,-638.0,0.00023458,2]
[391135195,1760386247812,-151.0,0.00023458,7]
[391135196,1760386247821,-151.0,0.00023458,7]
[391135197,1760386247831,-151.0,0.00023458,7]
[391135198,1760386247840,-160.0,0.000235,7]
[391135199,1760386247849,-151.0,0.000235,7]
[391135200,1760386247859,-158.916977,0.000235,7]
[391135201,1760386247868,-152.97436335,0.00023512,2]
[391135202,1760386247878,-638.0,0.00023512,2]
[391135203,1760386247888,-151.0,0.00023516,2]
[391135204,1760386247897,-2000.0,0.00023516,2]
[391135205,1760386247906,-2000.0,0.00023516,2]
[391135206,1760386247916,-2112.23536578,0.00023516,2]
[391135207,1760386247926,-1784.18353649,0.00023516,2]
[391135208,1760386247935,-2000.0,0.00023516,2]
[391135209,1760386247944,-2000.0,0.00023516,2]
[391135210,1760386247954,-1000.0,0.00023521,2]
[391135211,1760386247963,-502.61662809,0.00023521,2]
[391135212,1760386247973,-502.11854094,0.00023521,2]
[391135213,1760386247982,-304.34596877,0.00023548,2]
[391135214,1760386247992,-638.0,0.00023567,2]
[391135215,1760386248004,-1500.0,0.00023568,2]
[391135216,1760386248013,-502.74911584,0.00023568,2]
[391135217,1760386248022,-500.0,0.00023568,2]
[391135218,1760386248031,-1500.0,0.00023568,2]
[391135219,1760386248040,-20006.03981059,0.0002357,2]
[391135220,1760386248050,-151.0,0.0002357,2]
[391135221,1760386248059,-360.0,0.00023596,2]
[391135222,1760386248068,-151.0,0.000236,10]
[391135223,1760386248077,-1000.0,0.000236,2]
[391135224,1760386248085,-638.0,0.00023622,2]
[391135225,1760386248096,-1796.30799596,0.00023656,2]
[391135226,1760386248108,-638.0,0.00023677,2]
[391135227,1760386248119,-2011.58800229,0.00023712,2]
[391135228,1760386248127,-290.049,0.00023719,4]
[391135229,1760386248137,-500.0,0.00023729,2]
[391135230,1760386248148,-559.89575188,0.00023732,2]
[391135231,1760386248157,-638.0,0.00023732,2]
[391135232,1760386248167,-731.06297869,0.00023756,2]
[391135233,1760386248180,-688.94391006,0.00023756,2]
[391135234,1760386248189,-800.0,0.00023778,2]
[391135235,1760386248199,-151.0,0.0002378,7]
[391135236,1760386248208,-181.855682,0.0002378,7]
[391135237,1760386248217,-800.0,0.00023786,2]
[391135238,1760386248227,-638.0,0.00023786,2]
[391135239,1760386248236,-800.0,0.00023787,2]
[391135240,1760386248246,-800.0,0.00023789,2]
[391135241,1760386248258,-151.0,0.000238,9]
[391135242,1760386248267,-179.81511434,0.000238,5]
[391135243,1760386248277,-800.0,0.00023806,2]
[391135244,1760386248286,-800.0,0.00023822,2]
[391135245,1760386248295,-800.0,0.00023824,2]
[391135246,1760386248305,-392.0841244,0.00023836,2]
[391135247,1760386248314,-392.0841244,0.00023836,2]
[391135248,1760386248323,-392.0841244,0.00023836,2]
[391135249,1760386248332,-391.154232,0.00023836,2]
[391135250,1760386248341,-800.0,0.0002384,2]
[391135251,1760386248350,-638.0,0.00023841,2]
[391135252,1760386248359,-196.5,0.00023843,2]
[391135253,1760386248369,-236.69472896,0.00023844,2]
[391135254,1760386248378,-800.0,0.00023853,2]
[391135255,1760386248388,-800.0,0.00023854,2]
[391135256,1760386248397,-800.0,0.00023858,2]
[391135257,1760386248406,-800.0,0.00023861,2]
[391135258,1760386248416,-2500.0,0.00023864,2]
[391135259,1760386248426,-1005.46787646,0.00023864,2]
[391135260,1760386248435,-800.0,0.00023884,2]
[391135261,1760386248445,-638.0,0.00023896,2]
[391135262,1760386248455,-800.0,0.00023914,2]
[391135263,1760386248465,-800.0,0.00023925,2]
[391135264,1760386248476,-800.0,0.00023928,2]
[391135265,1760386248552,-151.0,0.00023929,7]
[391135266,1760386248563,-151.0,0.00023929,7]
[391135267,1760386248574,-151.0,0.00023929,7]
[391135268,1760386248584,-151.0,0.00023929,7]
[391135269,1760386248593,-224.564696,0.00023929,7]
[391135270,1760386248603,-151.0,0.00023929,7]
[391135271,1760386248612,-151.0,0.00023929,7]
[391135272,1760386248622,-154.775544,0.00023929,7]
[391135273,1760386248632,-154.775544,0.00023929,7]
[391135274,1760386248641,-154.775544,0.00023929,7]
[391135275,1760386248651,-154.775536,0.00023929,7]
[391135276,1760386248661,-166.195044,0.00023929,7]
[391135277,1760386248671,-166.195044,0.00023929,7]
[391135278,1760386248686,-166.195044,0.00023929,7]
[391135279,1760386248696,-166.195042,0.00023929,7]
[391135280,1760386248705,-800.0,0.00023936,2]
[391135281,1760386248715,-800.0,0.00023939,2]
[391135282,1760386248724,-800.0,0.00023943,2]
[391135283,1760386248733,-638.0,0.00023951,2]
[391135284,1760386248744,-151.0,0.00023951,7]
[391135285,1760386248755,-151.0,0.00023951,7]
[391135286,1760386248764,-151.0,0.00023951,7]
[391135287,1760386248773,-151.612106,0.00023951,7]
[391135288,1760386248782,-151.0,0.00023951,7]
[391135289,1760386248791,-180.218721,0.00023951,7]
[391135290,1760386248800,-152.357197,0.00023951,7]
[391135291,1760386248811,-800.0,0.00023963,2]
[391135292,1760386248821,-2500.0,0.00023964,2]
[391135293,1760386248830,-1500.0,0.00023964,2]
[391135294,1760386248839,-1300.13544049,0.00023964,2]
[391135295,1760386248849,-2500.0,0.00023964,2]
[391135296,1760386248859,-800.0,0.00023975,2]
[391135297,1760386248869,-800.0,0.00023984,2]
[391135298,1760386248878,-402.89760466,0.00023988,2]
[391135299,1760386248887,-800.0,0.00023993,2]
[391135300,1760386248896,-160.0,0.00024,7]
[391135301,1760386248905,-151.0,0.00024,7]
[391135302,1760386248915,-151.0,0.00024,7]
[391135303,1760386248926,-800.0,0.00024,2]
[391135304,1760386248937,-7237.09,0.00024,2]
[391135305,1760386248946,-800.0,0.00024001,2]
[391135306,1760386248955,-500.0,0.00024003,2]
[391135307,1760386248965,-638.0,0.00024006,2]
[391135308,1760386248975,-800.0,0.0002401,2]
[391135309,1760386248983,-179.71246006,0.00024011,2]
[391135310,1760386248993,-1000.0,0.00024021,2]
[391135311,1760386249003,-1000.0,0.00024021,2]
[391135312,1760386249012,-680.9639,0.00024021,2]
[391135313,1760386249022,-800.0,0.00024031,2]
[391135314,1760386249031,-168.0,0.00024047,2]
[391135315,1760386249041,-2072.6186822,0.00024051,2]
[391135316,1760386249050,-638.0,0.0002406,2]
[391135317,1760386249060,-2500.0,0.00024064,2]
[391135318,1760386249072,-734.49869312,0.00024064,2]
[391135319,1760386249092,-2500.0,0.00024064,2]
[391135320,1760386249109,-2500.0,0.00024064,2]
[391135321,1760386249126,-200.0,0.00024072,2]
[391135322,1760386249146,-150.0,0.00024073,2]
[391135323,1760386249164,-151.0,0.00024073,7]
[391135324,1760386249182,-151.0,0.00024073,7]
[391135325,1760386249198,-151.0,0.00024073,7]
[391135326,1760386249215,-151.0,0.00024073,7]
[391135327,1760386249228,-1728.0339442,0.00024093,2]
[391135328,1760386249241,-151.0,0.000241,9]
[391135329,1760386249257,-151.0,0.000241,7]
[391135330,1760386249274,-150.0,0.000241,2]
[391135331,1760386249290,-1000.0,0.000241,2]
[391135332,1760386249304,-1465.412534,0.00024113,2]
[391135333,1760386249316,-638.0,0.00024115,2]
[391135334,1760386249334,-2000.0,0.00024116,2]
[391135335,1760386249346,-502.47862123,0.00024116,2]
[391135336,1760386249361,-20746.26328358,0.00024118,2]
[391135337,1760386249373,-460.0,0.00024144,2]
[391135338,1760386249387,-402.34485587,0.0002416,7]
[391135339,1760386249401,-638.0,0.0002417,2]
[391135340,1760386249414,-1159.33329257,0.00024176,2]
[391135341,1760386249427,-1081.19,0.00024195,2]
[391135342,1760386249441,-638.0,0.00024225,2]
[391135343,1760386249455,-500.0,0.00024277,2]
[391135344,1760386249468,-638.0,0.0002428,2]
[391135345,1760386249483,-151.0,0.000243,9]
[391135346,1760386249496,-1000.0,0.000243,2]
[391135347,1760386249510,-1000.0,0.000243,2]
[391135348,1760386249524,-1000.0,0.000243,2]
[391135349,1760386249538,-1000.0,0.000243,2]
[391135350,1760386249551,-1000.0,0.000243,2]
[391135351,1760386249563,-1000.0,0.000243,2]
[391135352,1760386249577,-151.0,0.000243,7]
[391135353,1760386249590,-151.0,0.000243,7]
[391135354,1760386249605,-153.964798,0.000243,7]
[391135355,1760386249620,-151.0,0.000243,7]
[391135356,1760386249634,-200.0,0.0002431,7]
[391135357,1760386249647,-638.0,0.00024334,2]
[391135358,1760386249660,-638.0,0.00024389,2]
[391135359,1760386249675,-402.34485587,0.000244,3]
[391135360,1760386249689,-151.0,0.000244,7]
[391135361,1760386249702,-151.0,0.000244,6]
[391135362,1760386249715,-1000.0,0.000244,2]
[391135363,1760386249729,-1000.0,0.000244,2]
[391135364,1760386249741,-1000.0,0.000244,2]
[391135365,1760386249757,-1000.0,0.000244,2]
[391135366,1760386249771,-28106.01,0.000244,3]
[391135367,1760386249785,-1000.0,0.00024401,2]
[391135368,1760386249800,-2372.65176127,0.00024412,2]
[391135369,1760386249811,-638.0,0.00024444,2]
[391135370,1760386249820,-190.0,0.00024491,2]
[391135371,1760386249830,-638.0,0.00024499,2]
[391135372,1760386249839,-200.0,0.0002451,7]
[391135373,1760386249968,-3000.0,0.00024512,2]
[391135374,1760386249981,-2506.85177544,0.00024512,2]
[391135375,1760386249990,-168.0,0.00024527,2]
[391135376,1760386250002,-499.88718224,0.00024551,2]
[391135377,1760386250012,-638.0,0.00024553,2]
[391135378,1760386250022,-15753.41834759,0.00024557,2]
[391135379,1760386250031,-437.43168506,0.00024588,2]
[391135380,1760386250040,-402.34485587,0.000246,7]
[391135381,1760386250049,-178.0,0.00024603,13]
[391135382,1760386250059,-638.45038513,0.00024608,2]
[391135383,1760386250068,-2237.83368408,0.00024612,2]
[391135384,1760386250077,-3000.0,0.00024612,2]
[391135385,1760386250086,-3000.0,0.00024612,2]
[391135386,1760386250096,-150.77784067,0.00024621,2]
[391135387,1760386250109,-4057.0,0.00024626,2]
[391135388,1760386250118,-200.0,0.00024656,2]
[391135389,1760386250127,-500.0,0.00024657,2]
[391135390,1760386250136,-500.0,0.00024657,2]
[391135391,1760386250146,-500.0,0.00024657,2]
[391135392,1760386250155,-494.58857853,0.00024657,2]
[391135393,1760386250164,-503.61261678,0.00024657,2]
[391135394,1760386250174,-520.0,0.00024657,3]
[391135395,1760386250183,-520.0,0.00024657,3]
[391135396,1760386250192,-520.0,0.00024657,3]
[391135397,1760386250201,-500.0,0.00024657,2]
[391135398,1760386250210,-500.0,0.00024657,2]
[391135399,1760386250219,-500.0,0.00024657,2]
[391135400,1760386250227,-182.81032739,0.00024657,2]
[391135401,1760386250235,-500.0,0.00024657,2]
[391135402,1760386250244,-500.0,0.00024657,2]
[391135403,1760386250256,-500.0,0.00024657,2]
[391135404,1760386250265,-644.93061627,0.00024657,2]
[391135405,1760386250275,-500.0,0.00024657,2]
[391135406,1760386250284,-500.0,0.00024657,2]
[391135407,1760386250293,-500.0,0.00024657,2]
[391135408,1760386250302,-500.0,0.00024657,2]
[391135409,1760386250311,-500.0,0.00024657,2]
[391135410,1760386250321,-500.0,0.00024657,2]
[391135411,1760386250331,-500.0,0.00024657,2]
[391135412,1760386250340,-500.0,0.00024657,2]
[391135413,1760386250350,-208.32246007,0.00024657,2]
[391135414,1760386250360,-506.08850832,0.00024657,2]
[391135415,1760386250369,-502.08369144,0.00024657,2]
[391135416,1760386250380,-582.84631982,0.00024657,2]
[391135417,1760386250389,-500.0,0.00024657,2]
[391135418,1760386250398,-500.0,0.00024657,2]
[391135419,1760386250407,-500.0,0.00024657,2]
[391135420,1760386250416,-625.78128941,0.00024657,2]
[391135421,1760386250426,-500.0,0.00024657,2]
[391135422,1760386250435,-500.0,0.00024657,2]
[391135423,1760386250444,-500.0,0.00024657,2]
[391135424,1760386250454,-500.0,0.00024657,2]
[391135425,1760386250464,-500.0,0.00024657,2]
[391135426,1760386250473,-503.83133958,0.00024657,2]
[391135427,1760386250482,-500.0,0.00024657,2]
[391135428,1760386250491,-496.55507756,0.00024657,2]
[391135429,1760386250504,-557.51359199,0.00024657,2]
[391135430,1760386250514,-491.06043811,0.00024657,2]
[391135431,1760386250524,-501.02957421,0.00024657,2]
[391135432,1760386250533,-503.67358117,0.00024657,2]
[391135433,1760386250542,-487.42854932,0.00024657,2]
[391135434,1760386250551,-500.0,0.00024657,2]
[391135435,1760386250561,-399.29729644,0.00024657,2]
[391135436,1760386250570,-500.0,0.00024657,2]